fUSD/lending_fUSD_20251225
["ID","MTS","AMOUNT","RATE_DAILY","PERIOD"]
[399799311,1766682640868,-174.03875056,0.00015391,2]
[399799312,1766682640877,-150.0,0.00015394,2]
[399799313,1766682640887,-150.0,0.00015398,2]
[399799314,1766682640897,-150.0,0.00015401,2]
[399799315,1766682640907,-150.0,0.00015403,2]
[399799316,1766682640917,-150.0,0.00015408,2]
[399799317,1766682640927,-174.03875056,0.00015408,2]
[399799318,1766682640937,-150.0,0.00015411,2]
[399799319,1766682640947,-150.0,0.00015415,2]
[399799320,1766682640957,-174.03875056,0.00015425,2]
[399799321,1766682640967,-150.0,0.00015428,2]
[399799322,1766682640977,-150.0,0.00015429,2]
[399799323,1766682640990,-330.87823964,0.0001543,2]
[399799324,1766682640999,-150.0,0.00015432,2]
[399799325,1766682641009,-150.0,0.00015433,2]
[399799326,1766682641019,-151.0,0.00015435,2]
[399799327,1766682641029,-151.0,0.00015435,2]
[399799328,1766682641038,-151.0,0.00015435,2]
[399799329,1766682641048,-151.0,0.00015435,2]
[399799330,1766682641058,-151.0,0.00015435,2]
[399799331,1766682641068,-200.02,0.00015435,2]
[399799332,1766682641077,-151.0,0.00015435,2]
[399799333,1766682641087,-151.0,0.00015435,2]
[399799334,1766682641097,-151.0,0.00015435,2]
[399799335,1766682641106,-151.0,0.00015435,2]
[399799336,1766682641116,-151.0,0.00015435,2]
[399799337,1766682641125,-151.0,0.00015435,2]
[399799338,1766682641135,-151.0,0.00015435,2]
[399799339,1766682641144,-151.0,0.00015435,2]
[399799340,1766682641154,-151.0,0.00015435,2]
[399799341,1766682641164,-151.0,0.00015435,2]
[399799342,1766682641174,-151.0,0.00015435,2]
[399799343,1766682641184,-151.0,0.00015435,2]
[399799344,1766682641193,-151.0,0.00015435,2]
[399799345,1766682641203,-151.0,0.00015435,2]
[399799346,1766682641212,-151.0,0.00015435,2]
[399799347,1766682641222,-151.0,0.00015435,2]
[399799348,1766682641232,-207.4,0.00015435,2]
[399799349,1766682641242,-150.0,0.00015435,2]
[399799350,1766682641251,-150.0,0.00015435,2]
[399799351,1766682641261,-150.0,0.00015436,2]
[399799352,1766682641271,-150.0,0.00015442,2]
[399799353,1766682641281,-174.03875056,0.00015442,2]
[399799354,1766682641291,-3667.564,0.00015443,2]
[399799355,1766682641301,-259.537,0.00015443,2]
[399799356,1766682641311,-38163.46,0.00015444,2]
[399799357,1766682641321,-150.0,0.00015448,2]
[399799358,1766682641336,-150.0,0.00015458,2]
[399799359,1766682641346,-174.03875056,0.00015459,2]
[399799360,1766682641356,-150.0,0.0001546,2]
[399799361,1766682641367,-150.0,0.00015466,2]
[399799362,1766682641376,-150.0,0.00015468,2]
[399799363,1766682641386,-150.0,0.00015472,2]
[399799364,1766682641398,-150.0,0.00015473,2]
[399799365,1766682641407,-174.03875056,0.00015476,2]
[399799366,1766682641417,-150.0,0.00015479,2]
[399799367,1766682641427,-150.0,0.00015482,2]
[399799368,1766682641437,-150.0,0.00015488,2]
[399799369,1766682641446,-150.0,0.00015489,2]
[399799370,1766682641456,-174.03875056,0.00015494,2]
[399799371,1766682641466,-150.0,0.000155,2]
[399799372,1766682641476,-150.0,0.00015504,2]
[399799373,1766682641487,-150.0,0.00015507,2]
[399799374,1766682641497,-150.0,0.00015509,2]
[399799375,1766682641506,-150.0,0.00015509,2]
[399799376,1766682641517,-174.03875056,0.00015511,2]
[399799377,1766682641527,-7895.8822,0.00015512,2]
[399799378,1766682641537,-2500.0,0.00015512,2]
[399799379,1766682641546,-150.0,0.00015514,2]
[399799380,1766682641557,-150.0,0.00015518,2]
[399799381,1766682641567,-150.0,0.00015521,2]
[399799382,1766682641577,-150.0,0.00015527,2]
[399799383,1766682641587,-174.03875056,0.00015528,2]
[399799384,1766682641597,-150.0,0.0001553,2]
[399799385,1766682641607,-150.0,0.00015535,2]
[399799386,1766682641616,-150.0,0.00015542,2]
[399799387,1766682641626,-174.03875056,0.00015545,2]
[399799388,1766682641636,-150.0,0.00015546,2]
[399799389,1766682641645,-150.0,0.00015547,2]
[399799390,1766682641656,-150.0,0.00015547,2]
[399799391,1766682641666,-150.0,0.00015556,2]
[399799392,1766682641676,-174.03875056,0.00015562,2]
[399799393,1766682641686,-150.0,0.00015564,2]
[399799394,1766682641696,-150.0,0.00015566,2]
[399799395,1766682641706,-8650.44310075,0.00015566,2]
[399799396,1766682641716,-10257.25348525,0.00015566,2]
[399799397,1766682641726,-150.0,0.00015567,2]
[399799398,1766682641736,-150.0,0.00015571,2]
[399799399,1766682641746,-150.0,0.00015576,2]
[399799400,1766682641755,-150.0,0.00015579,2]
[399799401,1766682641764,-174.03875056,0.00015579,2]
[399799402,1766682641774,-150.0,0.00015583,2]
[399799403,1766682641783,-150.0,0.00015583,2]
[399799404,1766682641793,-150.0,0.00015585,2]
[399799405,1766682641803,-150.0,0.00015587,2]
[399799406,1766682641813,-150.0,0.00015597,2]
[399799407,1766682641822,-174.03875056,0.00015597,2]
[399799408,1766682641832,-1163.63434403,0.00015602,2]
[399799409,1766682641842,-266.76,0.00015603,2]
[399799410,1766682641853,-150.0,0.00015604,2]
[399799411,1766682641863,-150.0,0.00015606,2]
[399799412,1766682641873,-150.0,0.00015607,2]
[399799413,1766682641882,-1600.0,0.00015608,2]
[399799414,1766682641891,-150.0,0.00015611,2]
[399799415,1766682641902,-500.0,0.00015612,2]
[399799416,1766682641912,-370.97583972,0.00015612,2]
[399799417,1766682641922,-500.0,0.00015612,2]
[399799418,1766682641931,-500.0,0.00015612,2]
[399799419,1766682641941,-500.0,0.00015612,2]
[399799420,1766682641950,-500.0,0.00015612,2]
[399799421,1766682641960,-500.0,0.00015612,2]
[399799422,1766682641971,-500.0,0.00015612,2]
[399799423,1766682641980,-534.85503183,0.00015612,2]
[399799424,1766682641990,-500.0,0.00015612,2]
[399799425,1766682642000,-500.0,0.00015612,2]
[399799426,1766682642010,-500.0,0.00015612,2]
[399799427,1766682642019,-500.0,0.00015612,2]
[399799428,1766682642029,-500.0,0.00015612,2]
[399799429,1766682642040,-500.0,0.00015612,2]
[399799430,1766682642049,-500.0,0.00015612,2]
[399799431,1766682642059,-500.0,0.00015612,2]
[399799432,1766682642069,-500.0,0.00015612,2]
[399799433,1766682642079,-451.48949058,0.00015612,2]
[399799434,1766682642089,-500.0,0.00015612,2]
[399799435,1766682642099,-500.0,0.00015612,2]
[399799436,1766682642109,-500.0,0.00015612,2]
[399799437,1766682642119,-604.31886581,0.00015612,2]
[399799438,1766682642130,-500.0,0.00015612,2]
[399799439,1766682642139,-500.0,0.00015612,2]
[399799440,1766682642149,-500.0,0.00015612,2]
[399799441,1766682642159,-500.0,0.00015612,2]
[399799442,1766682642168,-500.0,0.00015612,2]
[399799443,1766682642178,-500.0,0.00015612,2]
[399799444,1766682642187,-500.0,0.00015612,2]
[399799445,1766682642197,-500.0,0.00015612,2]
[399799446,1766682642207,-1012.31,0.00015612,2]
[399799447,1766682642216,-1012.31,0.00015612,2]
[399799448,1766682642226,-1012.31,0.00015612,2]
[399799449,1766682642235,-1012.31,0.00015612,2]
[399799450,1766682642246,-500.0,0.00015612,2]
[399799451,1766682642256,-628.13024647,0.00015612,2]
[399799452,1766682642265,-500.0,0.00015612,2]
[399799453,1766682642274,-500.0,0.00015612,2]
[399799454,1766682642283,-500.0,0.00015612,2]
[399799455,1766682642293,-500.0,0.00015612,2]
[399799456,1766682642303,-174.03875056,0.00015614,2]
[399799457,1766682642313,-150.0,0.0001562,2]
[399799458,1766682642327,-150.0,0.00015627,2]
[399799459,1766682642337,-150.0,0.00015627,2]
[399799460,1766682642346,-150.0,0.00015627,2]
[399799461,1766682642356,-150.0,0.00015627,2]
[399799462,1766682642367,-150.0,0.00015627,2]
[399799463,1766682642377,-150.0,0.00015627,2]
[399799464,1766682642388,-174.03875056,0.00015631,2]
[399799465,1766682642399,-150.0,0.00015633,2]
[399799466,1766682642409,-150.0,0.00015645,2]
[399799467,1766682642419,-254.88,0.00015647,2]
[399799468,1766682642429,-150.0,0.00015647,2]
[399799469,1766682642438,-174.03875056,0.00015648,2]
[399799470,1766682642447,-150.0,0.00015649,2]
[399799471,1766682642456,-150.0,0.00015657,2]
[399799472,1766682642466,-150.0,0.00015657,2]
[399799473,1766682642476,-150.0,0.00015658,2]
[399799474,1766682642486,-150.0,0.00015662,2]
[399799475,1766682642496,-174.03875056,0.00015665,2]
[399799476,1766682642506,-150.0,0.00015667,2]
[399799477,1766682642516,-150.0,0.0001567,2]
[399799478,1766682642526,-330.87823964,0.00015675,2]
[399799479,1766682642536,-150.0,0.00015676,2]
[399799480,1766682642546,-174.03875056,0.00015682,2]
[399799481,1766682642556,-150.0,0.00015687,2]
[399799482,1766682642565,-150.0,0.00015689,2]
[399799483,1766682642575,-150.0,0.00015691,2]
[399799484,1766682642585,-150.0,0.00015691,2]
[399799485,1766682642595,-150.0,0.00015694,2]
[399799486,1766682642604,-174.03875056,0.00015699,2]
[399799487,1766682642616,-150.0,0.00015707,2]
[399799488,1766682642627,-150.0,0.00015712,2]
[399799489,1766682642637,-150.0,0.00015712,2]
[399799490,1766682642648,-174.03875056,0.00015717,2]
[399799491,1766682642657,-150.0,0.0001572,2]
[399799492,1766682642667,-150.0,0.0001572,2]
[399799493,1766682642677,-150.0,0.00015724,2]
[399799495,1766682642687,-500.0,0.00015726,2]
[399799496,1766682642697,-150.0,0.00015727,2]
[399799497,1766682642706,-150.0,0.00015731,2]
[399799498,1766682642716,-150.0,0.00015731,2]
[399799499,1766682642726,-150.0,0.00015734,2]
[399799500,1766682642737,-174.03875056,0.00015734,2]
[399799501,1766682642747,-150.0,0.00015735,2]
[399799502,1766682642757,-150.0,0.00015741,2]
[399799503,1766682642767,-150.0,0.00015747,2]
[399799504,1766682642777,-150.0,0.00015748,2]
[399799505,1766682642787,-150.0,0.00015751,2]
[399799507,1766682642797,-174.03875056,0.00015751,2]
[399799509,1766682642807,-150.0,0.00015755,2]
[399799511,1766682642817,-8650.44310075,0.00015757,2]
[399799513,1766682642827,-10257.25348525,0.00015757,2]
[399799515,1766682642837,-150.0,0.00015767,2]
[399799517,1766682642846,-150.0,0.00015768,2]
[399799518,1766682642856,-174.03875056,0.00015768,2]
[399799519,1766682642866,-150.0,0.00015773,2]
[399799520,1766682642876,-150.0,0.00015776,2]
[399799521,1766682642885,-150.0,0.00015777,2]
[399799522,1766682642895,-150.0,0.00015782,2]
[399799523,1766682642905,-174.03875056,0.00015785,2]
[399799524,1766682642915,-150.0,0.00015787,2]
[399799526,1766682642925,-150.0,0.00015797,2]
[399799528,1766682642935,-174.03875056,0.00015802,2]
[399799530,1766682642944,-150.0,0.00015805,2]
[399799531,1766682642954,-150.0,0.00015805,2]
[399799532,1766682642963,-150.0,0.00015806,2]
[399799533,1766682642973,-254.88,0.00015807,2]
[399799534,1766682642982,-150.0,0.00015807,2]
[399799536,1766682642992,-150.0,0.00015813,2]
[399799538,1766682643002,-150.0,0.00015818,2]
[399799540,1766682643012,-174.03875056,0.0001582,2]
[399799542,1766682643021,-150.0,0.00015822,2]
[399799544,1766682643030,-150.0,0.00015824,2]
[399799546,1766682643040,-150.0,0.00015827,2]
[399799554,1766682643302,-150.0,0.00015835,2]
[399799555,1766682643312,-174.03875056,0.00015837,2]
[399799556,1766682643327,-150.0,0.0001584,2]
[399799557,1766682643338,-150.0,0.00015842,2]
[399799558,1766682643348,-150.0,0.00015844,2]
[399799559,1766682643358,-150.0,0.00015847,2]
[399799560,1766682643368,-150.0,0.00015854,2]
[399799561,1766682643378,-174.03875056,0.00015854,2]
[399799562,1766682643388,-150.0,0.00015854,2]
[399799563,1766682643397,-150.0,0.00015854,2]
[399799564,1766682643409,-150.0,0.00015861,2]
[399799565,1766682643419,-150.0,0.00015863,2]
[399799566,1766682643429,-150.0,0.00015867,2]
[399799567,1766682643439,-150.0,0.0001587,2]
[399799568,1766682643450,-174.03875056,0.00015871,2]
[399799569,1766682643460,-150.0,0.00015874,2]
[399799570,1766682643469,-266.76,0.00015877,2]
[399799571,1766682643479,-150.0,0.00015878,2]
[399799572,1766682643489,-150.0,0.00015878,2]
[399799573,1766682643499,-150.0,0.00015882,2]
[399799574,1766682643509,-150.0,0.00015887,2]
[399799575,1766682643519,-174.03875056,0.00015888,2]
[399799576,1766682643528,-150.0,0.00015892,2]
[399799577,1766682643538,-150.0,0.00015903,2]
[399799578,1766682643547,-150.0,0.00015905,2]
[399799579,1766682643557,-174.03875056,0.00015905,2]
[399799580,1766682643568,-150.0,0.00015907,2]
[399799581,1766682643578,-150.0,0.00015913,2]
[399799583,1766682643588,-150.0,0.00015915,2]
[399799585,1766682643597,-150.0,0.00015919,2]
[399799587,1766682643607,-330.87823964,0.0001592,2]
[399799588,1766682643617,-150.0,0.00015921,2]
[399799589,1766682643627,-174.03875056,0.00015923,2]
[399799590,1766682643637,-150.0,0.00015925,2]
[399799592,1766682643647,-150.0,0.00015927,2]
[399799594,1766682643657,-150.0,0.00015936,2]
[399799597,1766682643667,-174.03875056,0.0001594,2]
[399799598,1766682643676,-150.0,0.00015946,2]
[399799600,1766682643686,-150.0,0.00015947,2]
[399799603,1766682643696,-8650.44310075,0.00015947,2]
[399799604,1766682643705,-10257.25348525,0.00015947,2]
[399799606,1766682643715,-150.0,0.0001595,2]
[399799607,1766682643724,-150.0,0.00015952,2]
[399799608,1766682643734,-150.0,0.00015952,2]
[399799609,1766682643744,-174.03875056,0.00015957,2]
[399799610,1766682643753,-150.0,0.00015967,2]
[399799611,1766682643763,-150.0,0.00015967,2]
[399799612,1766682643773,-150.0,0.00015967,2]
[399799613,1766682643783,-150.0,0.00015967,2]
[399799614,1766682643792,-150.0,0.00015967,2]
[399799615,1766682643802,-150.0,0.00015967,2]
[399799616,1766682643812,-174.03875056,0.00015974,2]
[399799617,1766682643822,-150.0,0.00015979,2]
[399799618,1766682643834,-150.0,0.00015987,2]
[399799619,1766682643844,-150.0,0.00015988,2]
[399799620,1766682643854,-150.0,0.00015989,2]
[399799621,1766682643864,-174.03875056,0.00015991,2]
[399799622,1766682643874,-150.0,0.00015995,2]
[399799623,1766682643883,-169.92,0.00015998,2]
[399799624,1766682643893,-150.0,0.00015998,2]
[399799625,1766682643902,-150.0,0.00016003,2]
[399799626,1766682643912,-150.0,0.00016007,2]
[399799627,1766682643922,-150.0,0.00016007,2]
[399799628,1766682643932,-174.03875056,0.00016008,2]
[399799629,1766682643942,-150.0,0.0001601,2]
[399799630,1766682643951,-150.0,0.00016016,2]
[399799631,1766682643962,-174.03875056,0.00016025,2]
[399799632,1766682643972,-150.0,0.00016026,2]
[399799633,1766682643981,-150.0,0.00016026,2]
[399799634,1766682643990,-150.0,0.00016027,2]
[399799635,1766682644000,-150.0,0.00016029,2]
[399799636,1766682644010,-169.91800371,0.00016029,2]
[399799637,1766682644020,-150.0,0.00016031,2]
[399799638,1766682644029,-150.0,0.00016036,2]
[399799639,1766682644040,-174.03875056,0.00016043,2]
[399799640,1766682644049,-150.0,0.00016047,2]
[399799641,1766682644059,-150.0,0.00016052,2]
[399799642,1766682644068,-150.0,0.0001606,2]
[399799643,1766682644079,-174.03875056,0.0001606,2]
[399799644,1766682644101,-150.0,0.00016063,2]
[399799645,1766682644122,-150.0,0.00016064,2]
[399799646,1766682644138,-150.0,0.00016065,2]
[399799647,1766682644148,-150.0,0.00016067,2]
[399799648,1766682644158,-150.0,0.00016073,2]
[399799649,1766682644169,-174.03875056,0.00016077,2]
[399799650,1766682644179,-150.0,0.0001608,2]
[399799651,1766682644190,-150.0,0.00016087,2]
[399799652,1766682644199,-150.0,0.00016091,2]
[399799653,1766682644209,-150.0,0.00016092,2]
[399799654,1766682644220,-150.0,0.00016094,2]
[399799655,1766682644230,-174.03875056,0.00016094,2]
[399799656,1766682644239,-150.0,0.00016095,2]
[399799657,1766682644249,-150.0,0.000161,2]
[399799658,1766682644259,-150.0,0.000161,2]
[399799659,1766682644269,-150.0,0.00016107,2]
[399799660,1766682644279,-174.03875056,0.00016111,2]
[399799661,1766682644289,-150.0,0.00016113,2]
[399799662,1766682644299,-150.0,0.00016116,2]
[399799663,1766682644308,-150.0,0.00016122,2]
[399799664,1766682644320,-150.0,0.00016123,2]
[399799665,1766682644334,-150.0,0.00016127,2]
[399799666,1766682644345,-174.03875056,0.00016128,2]
[399799667,1766682644356,-1680.0,0.00016135,2]
[399799668,1766682644367,-150.0,0.00016137,2]
[399799669,1766682644378,-150.0,0.00016137,2]
[399799670,1766682644388,-150.0,0.00016137,2]
[399799671,1766682644400,-150.0,0.00016137,2]
[399799672,1766682644410,-8650.44310075,0.00016138,2]
[399799673,1766682644421,-10257.25348525,0.00016138,2]
[399799674,1766682644433,-174.03875056,0.00016146,2]
[399799675,1766682644443,-150.0,0.00016147,2]
[399799676,1766682644453,-250.0,0.00016149,2]
[399799677,1766682644463,-250.0,0.00016149,2]
[399799678,1766682644473,-250.0,0.00016149,2]
[399799679,1766682644483,-250.0,0.00016149,2]
[399799680,1766682644493,-250.0,0.00016149,2]
[399799681,1766682644502,-250.0,0.00016149,2]
[399799682,1766682644512,-250.0,0.00016149,2]
[399799683,1766682644521,-500.0,0.00016149,2]
[399799684,1766682644531,-250.0,0.00016149,2]
[399799685,1766682644541,-574.12855637,0.00016149,2]
[399799686,1766682644550,-250.0,0.00016149,2]
[399799687,1766682644560,-500.0,0.00016149,2]
[399799688,1766682644570,-250.0,0.00016149,2]
[399799689,1766682644579,-500.0,0.00016149,2]
[399799690,1766682644589,-250.0,0.00016149,2]
[399799691,1766682644598,-500.0,0.00016149,2]
[399799692,1766682644608,-250.0,0.00016149,2]
[399799693,1766682644618,-500.0,0.00016149,2]
[399799694,1766682644627,-578.20924308,0.00016149,2]
[399799695,1766682644637,-250.0,0.00016149,2]
[399799696,1766682644647,-500.0,0.00016149,2]
[399799697,1766682644657,-250.0,0.00016149,2]
[399799698,1766682644666,-620.0,0.00016149,2]
[399799699,1766682644676,-500.0,0.00016149,2]
[399799700,1766682644686,-250.0,0.00016149,2]
[399799701,1766682644696,-500.0,0.00016149,2]
[399799702,1766682644706,-250.0,0.00016149,2]
[399799703,1766682644715,-500.0,0.00016149,2]
[399799704,1766682644725,-500.0,0.00016149,2]
[399799705,1766682644735,-500.0,0.00016149,2]
[399799706,1766682644745,-500.0,0.00016149,2]
[399799707,1766682644754,-500.0,0.00016149,2]
[399799708,1766682644764,-500.0,0.00016149,2]
[399799709,1766682644773,-500.0,0.00016149,2]
[399799710,1766682644783,-500.0,0.00016149,2]
[399799711,1766682644792,-500.0,0.00016149,2]
[399799712,1766682644801,-283.18901002,0.00016149,2]
[399799713,1766682644811,-500.0,0.00016149,2]
[399799714,1766682644821,-500.0,0.00016149,2]
[399799715,1766682644831,-500.0,0.00016149,2]
[399799716,1766682644841,-500.0,0.00016149,2]
[399799717,1766682644850,-3610.92924073,0.00016149,2]
[399799718,1766682644860,-500.0,0.00016149,2]
[399799719,1766682644870,-500.0,0.00016149,2]
[399799720,1766682644880,-250.0,0.00016149,2]
[399799721,1766682644890,-500.0,0.00016149,2]
[399799722,1766682644900,-250.0,0.00016149,2]
[399799723,1766682644910,-250.0,0.00016149,2]
[399799724,1766682644919,-250.0,0.00016149,2]
[399799725,1766682644929,-250.0,0.00016149,2]
[399799726,1766682644938,-151.0,0.00016149,2]
[399799727,1766682644947,-250.0,0.00016149,2]
[399799728,1766682644957,-1500.0,0.00016149,2]
[399799729,1766682644966,-250.0,0.00016149,2]
[399799730,1766682644976,-1500.0,0.00016149,2]
[399799731,1766682644986,-250.0,0.00016149,2]
[399799732,1766682644996,-1500.0,0.00016149,2]
[399799733,1766682645006,-250.0,0.00016149,2]
[399799734,1766682645016,-1500.0,0.00016149,2]
[399799735,1766682645026,-250.0,0.00016149,2]
[399799736,1766682645035,-1500.0,0.00016149,2]
[399799737,1766682645045,-250.0,0.00016149,2]
[399799738,1766682645055,-1500.0,0.00016149,2]
[399799739,1766682645064,-1500.0,0.00016149,2]
[399799740,1766682645074,-1500.0,0.00016149,2]
[399799741,1766682645085,-200.0,0.00016149,2]
[399799742,1766682645094,-1500.0,0.00016149,2]
[399799743,1766682645104,-207.4,0.00016149,2]
[399799744,1766682645114,-1500.0,0.00016149,2]
[399799745,1766682645123,-215.0738,0.00016149,2]
[399799746,1766682645133,-1500.0,0.00016149,2]
[399799747,1766682645143,-223.0315306,0.00016149,2]
[399799748,1766682645153,-231.28369723,0.00016149,2]
[399799749,1766682645164,-239.84119403,0.00016149,2]
[399799750,1766682645174,-248.71531821,0.00016149,2]
[399799751,1766682645184,-257.91778498,0.00016149,2]
[399799752,1766682645194,-267.46074303,0.00016149,2]
[399799753,1766682645204,-277.35679052,0.00016149,2]
[399799754,1766682645213,-322.6107,0.00016149,2]
[399799755,1766682645223,-266.76,0.00016151,2]
[399799756,1766682645232,-150.0,0.00016151,2]
[399799757,1766682645242,-150.0,0.00016152,2]
[399799758,1766682645252,-150.0,0.00016158,2]
[399799759,1766682645265,-150.0,0.00016161,2]
[399799760,1766682645276,-174.03875056,0.00016163,2]
[399799761,1766682645294,-330.87823964,0.00016165,2]
[399799762,1766682645315,-150.0,0.00016167,2]
[399799763,1766682645329,-341.0,0.0001617,2]
[399799764,1766682645343,-150.0,0.00016174,2]
[399799765,1766682645352,-150.0,0.00016174,2]
[399799766,1766682645363,-150.0,0.00016179,2]
[399799767,1766682645377,-174.03875056,0.0001618,2]
[399799768,1766682645389,-150.0,0.0001618,2]
[399799769,1766682645401,-150.0,0.00016182,2]
[399799770,1766682645412,-150.0,0.00016183,2]
[399799771,1766682645422,-500.0,0.00016183,2]
[399799772,1766682645433,-648.46173605,0.00016183,2]
[399799773,1766682645443,-515.54072242,0.00016183,2]
[399799774,1766682645454,-500.0,0.00016183,2]
[399799775,1766682645464,-500.0,0.00016183,2]
[399799776,1766682645473,-500.0,0.00016183,2]
[399799777,1766682645483,-500.0,0.00016183,2]
[399799778,1766682645499,-349.16265713,0.00016183,2]
[399799779,1766682645520,-500.0,0.00016183,2]
[399799780,1766682645535,-500.0,0.00016183,2]
[399799781,1766682645547,-500.0,0.00016183,2]
[399799782,1766682645559,-500.0,0.00016183,2]
[399799783,1766682645568,-500.0,0.00016183,2]
[399799784,1766682645578,-500.0,0.00016183,2]
[399799785,1766682645587,-168.21782,0.00016183,2]
[399799786,1766682645597,-500.0,0.00016183,2]
[399799787,1766682645606,-500.0,0.00016183,2]
[399799788,1766682645615,-160.176,0.00016183,2]
[399799789,1766682645625,-500.0,0.00016183,2]
[399799790,1766682645635,-500.0,0.00016183,2]
[399799791,1766682645645,-500.0,0.00016183,2]
[399799793,1766682645654,-500.0,0.00016183,2]
[399799794,1766682645664,-500.0,0.00016183,2]
[399799795,1766682645674,-500.0,0.00016183,2]
[399799796,1766682645683,-500.0,0.00016183,2]
[399799797,1766682645693,-500.0,0.00016183,2]
[399799799,1766682645703,-500.0,0.00016183,2]
[399799800,1766682645712,-500.66742167,0.00016183,2]
[399799801,1766682645722,-500.0,0.00016183,2]
[399799802,1766682645732,-500.0,0.00016183,2]
[399799803,1766682645742,-500.0,0.00016183,2]
[399799804,1766682645751,-164.92711325,0.00016183,2]
[399799805,1766682645762,-500.0,0.00016183,2]
[399799806,1766682645772,-500.0,0.00016183,2]
[399799807,1766682645782,-500.0,0.00016183,2]
[399799808,1766682645791,-500.0,0.00016183,2]
[399799809,1766682645801,-500.0,0.00016183,2]
[399799811,1766682645810,-500.0,0.00016183,2]
[399799813,1766682645820,-150.0,0.00016187,2]
[399799814,1766682645830,-150.0,0.00016194,2]
[399799815,1766682645839,-174.03875056,0.00016197,2]
[399799816,1766682645849,-150.0,0.00016201,2]
[399799817,1766682645859,-150.0,0.00016207,2]
[399799818,1766682645868,-150.0,0.00016209,2]
[399799819,1766682645878,-150.0,0.0001621,2]
[399799820,1766682645888,-150.0,0.00016211,2]
[399799821,1766682645898,-150.0,0.00016214,2]
[399799822,1766682645908,-174.03875056,0.00016214,2]
[399799823,1766682645918,-150.0,0.00016222,2]
[399799824,1766682645927,-150.0,0.00016227,2]
[399799825,1766682645937,-174.03875056,0.00016231,2]
[399799826,1766682645948,-150.0,0.00016238,2]
[399799827,1766682645959,-150.0,0.00016243,2]
[399799828,1766682645969,-150.0,0.00016245,2]
[399799829,1766682645980,-150.0,0.00016247,2]
[399799830,1766682645990,-150.0,0.00016248,2]
[399799831,1766682646000,-150.0,0.00016248,2]
[399799832,1766682646010,-3151.0,0.00016248,2]
[399799833,1766682646020,-174.03875056,0.00016249,2]
[399799834,1766682646029,-150.0,0.00016258,2]
[399799835,1766682646039,-150.0,0.00016264,2]
[399799836,1766682646050,-174.03875056,0.00016266,2]
[399799837,1766682646059,-150.0,0.00016267,2]
[399799838,1766682646069,-150.0,0.00016267,2]
[399799839,1766682646080,-150.0,0.00016271,2]
[399799840,1766682646090,-150.0,0.00016276,2]
[399799841,1766682646100,-150.0,0.00016279,2]
[399799842,1766682646110,-341.0,0.0001628,2]
[399799843,1766682646121,-174.03875056,0.00016283,2]
[399799844,1766682646132,-150.0,0.00016285,2]
[399799845,1766682646142,-150.0,0.00016286,2]
[399799846,1766682646152,-150.0,0.00016287,2]
[399799847,1766682646163,-150.0,0.00016295,2]
[399799848,1766682646173,-174.03875056,0.000163,2]